[Event "Titled Tuesday Blitz November 14 Early 2023"]
[White "Statham_l3"]
[Black "Ramla2020"]
[WhiteElo "2563"]
[BlackElo "2464"]
[Result "0-1"]
[Round "11"]
[TimeControl "180+1"]
[Date "2023.11.14"]
[WhiteClock "0:00:00"]
[BlackClock "0:01:31"]
[Board "82"]

1. e4 {[%clk 0:03:00]}  e5 {[%clk 0:02:20]} 2. Nf3 {[%clk 0:02:59]}  d6 {[%clk 0:02:20]} 3. Nc3 {[%clk 0:02:53]}  Nd7 {[%clk 0:02:21]} 4. d4 {[%clk 0:02:53]}  c6 {[%clk 0:02:22]} 5. Bc4 {[%clk 0:02:50]}  Be7 {[%clk 0:02:22]} 6. a4 {[%clk 0:02:44]}  Ngf6 {[%clk 0:02:21]} 7. O-O {[%clk 0:02:42]}  O-O {[%clk 0:02:20]} 8. Re1 {[%clk 0:02:30]}  h6 {[%clk 0:02:19]} 9. h3 {[%clk 0:02:30]}  b6 {[%clk 0:02:19]} 10. b3 {[%clk 0:02:14]}  Bb7 {[%clk 0:02:19]} 11. Bb2 {[%clk 0:02:13]}  Qc7 {[%clk 0:02:18]} 12. d5 {[%clk 0:02:02]}  cxd5 {[%clk 0:02:15]} 13. Nb5 {[%clk 0:02:01]}  Qb8 {[%clk 0:02:08]} 14. Bxd5 {[%clk 0:01:49]}  Nxd5 {[%clk 0:02:07]} 15. exd5 {[%clk 0:01:50]}  a6 {[%clk 0:02:07]} 16. Na3 {[%clk 0:01:43]}  f5 {[%clk 0:02:01]} 17. c4 {[%clk 0:01:43]}  Bf6 {[%clk 0:01:57]} 18. Nc2 {[%clk 0:01:41]}  Nc5 {[%clk 0:01:56]} 19. Nb4 {[%clk 0:01:30]}  Qc7 {[%clk 0:01:52]} 20. Qc2 {[%clk 0:01:16]}  a5 {[%clk 0:01:50]} 21. Na2 {[%clk 0:00:58]}  Bc8 {[%clk 0:01:47]} 22. b4 {[%clk 0:00:44]}  axb4 {[%clk 0:01:44]} 23. Nxb4 {[%clk 0:00:45]}  Bd7 {[%clk 0:01:44]} 24. Nc6 {[%clk 0:00:34]}  Bxc6 {[%clk 0:01:43]} 25. dxc6 {[%clk 0:00:34]}  Qxc6 {[%clk 0:01:44]} 26. Rad1 {[%clk 0:00:10]}  Ne4 {[%clk 0:01:39]} 27. Nd2 {[%clk 0:00:05]}  Nxd2 {[%clk 0:01:35]} 28. Rxd2 {[%clk 0:00:06]}  e4 {[%clk 0:01:32]} 29. Bxf6 {[%clk 0:00:04]}  Rxf6 {[%clk 0:01:33]} 30. Red1 {[%clk 0:00:00]}  Rxa4 {[%clk 0:01:31]} 0-1


[Site "https://www.chess.com"]

[Event "Titled Tuesday Blitz November 14 Early 2023"]
[White "Begunov, Konstantin"]
[Black "LouieKov2022"]
[WhiteFideId "4118510"]
[WhiteElo "2455"]
[BlackElo "2558"]
[Result "1-0"]
[Round "11"]
[TimeControl "180+1"]
[Date "2023.11.14"]
[WhiteClock "0:00:23"]
[BlackClock "0:00:00"]
[Board "83"]

1. d4 {[%clk 0:03:00]}  d5 {[%clk 0:02:58]} 2. c4 {[%clk 0:03:00]}  c6 {[%clk 0:02:59]} 3. Nc3 {[%clk 0:03:01]}  dxc4 {[%clk 0:02:59]} 4. e4 {[%clk 0:02:57]}  b5 {[%clk 0:02:59]} 5. a4 {[%clk 0:02:57]}  b4 {[%clk 0:02:58]} 6. Na2 {[%clk 0:02:57]}  Nf6 {[%clk 0:02:58]} 7. e5 {[%clk 0:02:57]}  Nd5 {[%clk 0:02:58]} 8. Bxc4 {[%clk 0:02:57]}  e6 {[%clk 0:02:59]} 9. Nf3 {[%clk 0:02:54]}  Bb7 {[%clk 0:02:59]} 10. Bg5 {[%clk 0:02:48]}  Qb6 {[%clk 0:02:53]} 11. Nc1 {[%clk 0:02:46]}  a5 {[%clk 0:02:48]} 12. Nb3 {[%clk 0:02:45]}  Nd7 {[%clk 0:02:47]} 13. Rc1 {[%clk 0:02:40]}  h6 {[%clk 0:02:47]} 14. Bh4 {[%clk 0:02:36]}  Ba6 {[%clk 0:02:10]} 15. Qc2 {[%clk 0:02:25]}  Rc8 {[%clk 0:02:04]} 16. O-O {[%clk 0:02:22]}  Be7 {[%clk 0:01:59]} 17. Bxe7 {[%clk 0:02:21]}  Nxe7 {[%clk 0:01:55]} 18. Nfd2 {[%clk 0:02:12]}  O-O {[%clk 0:01:48]} 19. Ne4 {[%clk 0:02:12]}  Nd5 {[%clk 0:01:42]} 20. Rfd1 {[%clk 0:01:49]}  Rc7 {[%clk 0:01:38]} 21. Rd3 {[%clk 0:01:45]}  f5 {[%clk 0:01:31]} 22. exf6 {[%clk 0:01:43]}  N7xf6 {[%clk 0:01:31]} 23. Nec5 {[%clk 0:01:38]}  Bxc4 {[%clk 0:01:26]} 24. Qxc4 {[%clk 0:01:39]}  Re7 {[%clk 0:01:24]} 25. Qa6 {[%clk 0:01:31]}  Qb8 {[%clk 0:01:22]} 26. Nxa5 {[%clk 0:01:21]}  Ng4 {[%clk 0:01:22]} 27. Rg3 {[%clk 0:01:17]}  Qf4 {[%clk 0:01:13]} 28. Nd3 {[%clk 0:01:05]}  Qf5 {[%clk 0:00:50]} 29. Nxc6 {[%clk 0:01:03]}  Rc7 {[%clk 0:00:41]} 30. Re1 {[%clk 0:00:40]}  Qh5 {[%clk 0:00:04]} 31. h3 {[%clk 0:00:39]}  Nxf2 {[%clk 0:00:04]} 32. Nxf2 {[%clk 0:00:35]}  Qh4 {[%clk 0:00:04]} 33. Ne4 {[%clk 0:00:29]}  Nf4 {[%clk 0:00:01]} 34. Ne5 {[%clk 0:00:24]}  Nh5 {[%clk 0:00:01]} 35. Qxe6+ {[%clk 0:00:23]}  Kh8 {[%clk 0:00:00]} 36. Ng6+ {[%clk 0:00:23]} 1-0


[Site "https://www.chess.com"]

[Event "Titled Tuesday Blitz November 14 Early 2023"]
[White "TomLiu777"]
[Black "Zaksaite, Salomeja"]
[BlackFideId "12801496"]
[WhiteElo "2537"]
[BlackElo "2365"]
[Result "0-1"]
[Round "11"]
[TimeControl "180+1"]
[Date "2023.11.14"]
[WhiteClock "0:01:15"]
[BlackClock "0:00:17"]
[Board "88"]

1. d4 {[%clk 0:02:59]}  Nf6 {[%clk 0:02:59]} 2. Nf3 {[%clk 0:02:59]}  g6 {[%clk 0:02:59]} 3. g3 {[%clk 0:02:59]}  Bg7 {[%clk 0:02:59]} 4. c4 {[%clk 0:03:00]}  d6 {[%clk 0:02:44]} 5. Bg2 {[%clk 0:02:58]}  O-O {[%clk 0:02:42]} 6. O-O {[%clk 0:02:49]}  Nc6 {[%clk 0:02:42]} 7. b3 {[%clk 0:02:48]}  e5 {[%clk 0:02:42]} 8. dxe5 {[%clk 0:02:47]}  Nxe5 {[%clk 0:02:39]} 9. Nxe5 {[%clk 0:02:46]}  dxe5 {[%clk 0:02:39]} 10. Bb2 {[%clk 0:02:46]}  Qxd1 {[%clk 0:01:54]} 11. Rxd1 {[%clk 0:02:47]}  Re8 {[%clk 0:01:53]} 12. Nc3 {[%clk 0:02:46]}  c6 {[%clk 0:01:53]} 13. Ne4 {[%clk 0:02:35]}  Nxe4 {[%clk 0:01:49]} 14. Bxe4 {[%clk 0:02:36]}  Be6 {[%clk 0:01:45]} 15. Bg2 {[%clk 0:02:29]}  Rad8 {[%clk 0:01:44]} 16. Kf1 {[%clk 0:02:28]}  f5 {[%clk 0:01:36]} 17. Ke1 {[%clk 0:02:21]}  Kf7 {[%clk 0:01:36]} 18. Rxd8 {[%clk 0:02:18]}  Rxd8 {[%clk 0:01:36]} 19. Rd1 {[%clk 0:02:19]}  Rxd1+ {[%clk 0:01:35]} 20. Kxd1 {[%clk 0:02:20]}  e4 {[%clk 0:01:30]} 21. Bxg7 {[%clk 0:02:19]}  Kxg7 {[%clk 0:01:31]} 22. e3 {[%clk 0:02:19]}  Kf6 {[%clk 0:01:31]} 23. Bf1 {[%clk 0:02:19]}  c5 {[%clk 0:01:29]} 24. Be2 {[%clk 0:02:19]}  Ke5 {[%clk 0:01:29]} 25. Kd2 {[%clk 0:02:19]}  g5 {[%clk 0:01:27]} 26. Kc3 {[%clk 0:02:20]}  f4 {[%clk 0:01:17]} 27. b4 {[%clk 0:02:14]}  b6 {[%clk 0:01:16]} 28. a4 {[%clk 0:02:13]}  a5 {[%clk 0:01:15]} 29. bxa5 {[%clk 0:02:08]}  bxa5 {[%clk 0:01:15]} 30. Bf1 {[%clk 0:02:05]}  h5 {[%clk 0:01:12]} 31. Be2 {[%clk 0:02:03]}  Bf7 {[%clk 0:01:10]} 32. Kd2 {[%clk 0:01:54]}  Be8 {[%clk 0:01:07]} 33. Bd1 {[%clk 0:01:53]}  h4 {[%clk 0:01:03]} 34. g4 {[%clk 0:01:49]}  f3 {[%clk 0:00:58]} 35. h3 {[%clk 0:01:43]}  Bd7 {[%clk 0:00:58]} 36. Ke1 {[%clk 0:01:42]}  Bxg4 {[%clk 0:00:51]} 37. Be2 {[%clk 0:01:22]}  fxe2 {[%clk 0:00:23]} 38. f4+ {[%clk 0:01:19]}  exf3 {[%clk 0:00:19]} 39. hxg4 {[%clk 0:01:15]}  h3 {[%clk 0:00:18]} 40. e4 {[%clk 0:01:15]}  h2 {[%clk 0:00:18]} 41. Kf2 {[%clk 0:01:15]}  e1=Q+ {[%clk 0:00:17]} 42. Kxf3 {[%clk 0:01:15]}  h1=Q# {[%clk 0:00:17]} 0-1


[Site "https://www.chess.com"]

[Event "Titled Tuesday Blitz November 14 Early 2023"]
[White "Lebedev, Artem S."]
[Black "Manukian, Artak"]
[WhiteFideId "34272747"]
[BlackFideId "13301373"]
[WhiteElo "2362"]
[BlackElo "2530"]
[Result "0-1"]
[Round "11"]
[TimeControl "180+1"]
[Date "2023.11.14"]
[WhiteClock "0:00:00"]
[BlackClock "0:00:43"]
[Board "89"]

1. e4 {[%clk 0:02:56]}  c6 {[%clk 0:02:55]} 2. d4 {[%clk 0:02:56]}  d5 {[%clk 0:02:56]} 3. e5 {[%clk 0:02:55]}  Bf5 {[%clk 0:02:56]} 4. h4 {[%clk 0:02:54]}  h5 {[%clk 0:02:56]} 5. Bd3 {[%clk 0:02:54]}  Bxd3 {[%clk 0:02:55]} 6. Qxd3 {[%clk 0:02:54]}  e6 {[%clk 0:02:56]} 7. Bg5 {[%clk 0:02:55]}  Qa5+ {[%clk 0:02:56]} 8. Nd2 {[%clk 0:02:54]}  Qa6 {[%clk 0:02:57]} 9. c4 {[%clk 0:02:55]}  Bb4 {[%clk 0:02:58]} 10. b3 {[%clk 0:02:53]}  Nd7 {[%clk 0:02:58]} 11. Nf3 {[%clk 0:02:53]}  Nh6 {[%clk 0:02:58]} 12. O-O {[%clk 0:02:52]}  Bxd2 {[%clk 0:02:58]} 13. Bxd2 {[%clk 0:02:49]}  Nf5 {[%clk 0:02:56]} 14. Bb4 {[%clk 0:02:43]}  O-O-O {[%clk 0:02:55]} 15. a4 {[%clk 0:02:37]}  dxc4 {[%clk 0:02:53]} 16. bxc4 {[%clk 0:02:30]}  c5 {[%clk 0:02:53]} 17. dxc5 {[%clk 0:01:47]}  Nxe5 {[%clk 0:02:44]} 18. Qe4 {[%clk 0:01:42]}  Nxf3+ {[%clk 0:02:41]} 19. Qxf3 {[%clk 0:01:43]}  Qxc4 {[%clk 0:02:34]} 20. Rfc1 {[%clk 0:01:28]}  Qd4 {[%clk 0:02:17]} 21. c6 {[%clk 0:01:19]}  Qd5 {[%clk 0:02:08]} 22. Qf4 {[%clk 0:00:55]}  bxc6 {[%clk 0:02:07]} 23. Rab1 {[%clk 0:00:55]}  Nd4 {[%clk 0:02:02]} 24. Qxf7 {[%clk 0:00:24]}  Rd7 {[%clk 0:01:57]} 25. Qg6 {[%clk 0:00:16]}  Ne2+ {[%clk 0:01:55]} 26. Kh1 {[%clk 0:00:16]}  Nxc1 {[%clk 0:01:56]} 27. Rxc1 {[%clk 0:00:17]}  Kb7 {[%clk 0:01:38]} 28. Bc5 {[%clk 0:00:15]}  Qf5 {[%clk 0:01:31]} 29. Qg3 {[%clk 0:00:13]}  Rhd8 {[%clk 0:01:25]} 30. Kh2 {[%clk 0:00:09]}  e5 {[%clk 0:01:25]} 31. Qb3+ {[%clk 0:00:06]}  Ka8 {[%clk 0:01:24]} 32. Be3 {[%clk 0:00:02]}  Rb7 {[%clk 0:01:18]} 33. Qc3 {[%clk 0:00:02]}  Rc8 {[%clk 0:01:17]} 34. f3 {[%clk 0:00:01]}  e4 {[%clk 0:01:14]} 35. f4 {[%clk 0:00:01]}  Qg4 {[%clk 0:01:13]} 36. Qc5 {[%clk 0:00:01]}  Qxh4+ {[%clk 0:01:12]} 37. Kg1 {[%clk 0:00:02]}  Qe7 {[%clk 0:01:10]} 38. Qc4 {[%clk 0:00:02]}  Qd7 {[%clk 0:01:04]} 39. Qc5 {[%clk 0:00:02]}  Rd8 {[%clk 0:00:57]} 40. Kh2 {[%clk 0:00:01]}  Qd6 {[%clk 0:00:55]} 41. Qc3 {[%clk 0:00:02]}  g5 {[%clk 0:00:53]} 42. Qa5 {[%clk 0:00:02]}  gxf4 {[%clk 0:00:51]} 43. Bc5 {[%clk 0:00:02]}  Qc7 {[%clk 0:00:48]} 44. Qc3 {[%clk 0:00:01]}  f3+ {[%clk 0:00:48]} 45. g3 {[%clk 0:00:02]}  h4 {[%clk 0:00:47]} 46. Bf2 {[%clk 0:00:02]}  hxg3+ {[%clk 0:00:44]} 47. Bxg3 {[%clk 0:00:02]}  Qh7+ {[%clk 0:00:43]} 48. Kg1 {[%clk 0:00:00]}  Qh3 {[%clk 0:00:43]} 0-1


[Site "https://www.chess.com"]

[Event "Titled Tuesday Blitz November 14 Early 2023"]
[White "Reprintsev, Alexander"]
[Black "Cheer_Down"]
[WhiteFideId "14100541"]
[WhiteElo "2536"]
[BlackElo "2399"]
[Result "0-1"]
[Round "11"]
[TimeControl "180+1"]
[Date "2023.11.14"]
[WhiteClock "0:01:21"]
[BlackClock "0:01:45"]
[Board "92"]

1. e4 {[%clk 0:02:57]}  e5 {[%clk 0:02:59]} 2. Nf3 {[%clk 0:02:56]}  Nc6 {[%clk 0:02:59]} 3. Bc4 {[%clk 0:02:56]}  Nf6 {[%clk 0:02:59]} 4. Ng5 {[%clk 0:02:56]}  d5 {[%clk 0:02:58]} 5. exd5 {[%clk 0:02:56]}  Na5 {[%clk 0:02:57]} 6. Bb5+ {[%clk 0:02:56]}  c6 {[%clk 0:02:57]} 7. dxc6 {[%clk 0:02:56]}  bxc6 {[%clk 0:02:57]} 8. Bd3 {[%clk 0:02:55]}  Ng4 {[%clk 0:02:40]} 9. Nh3 {[%clk 0:02:54]}  f5 {[%clk 0:02:26]} 10. O-O {[%clk 0:02:41]}  Bd6 {[%clk 0:02:22]} 11. b4 {[%clk 0:02:38]}  Nb7 {[%clk 0:02:19]} 12. f3 {[%clk 0:02:34]}  Nf6 {[%clk 0:02:18]} 13. Bb2 {[%clk 0:02:31]}  O-O {[%clk 0:02:16]} 14. Re1 {[%clk 0:02:03]}  e4 {[%clk 0:02:03]} 15. fxe4 {[%clk 0:02:02]}  fxe4 {[%clk 0:02:03]} 16. Bc4+ {[%clk 0:01:55]}  Kh8 {[%clk 0:02:03]} 17. Ng5 {[%clk 0:01:54]}  Ng4 {[%clk 0:01:53]} 18. h4 {[%clk 0:01:43]}  Qb6+ {[%clk 0:01:50]} 19. Re3 {[%clk 0:01:39]}  Nxe3 {[%clk 0:01:50]} 20. dxe3 {[%clk 0:01:39]}  Qxe3+ {[%clk 0:01:49]} 21. Kh1 {[%clk 0:01:21]}  Qg3 {[%clk 0:01:45]} 0-1


[Site "https://www.chess.com"]

[Event "Titled Tuesday Blitz November 14 Early 2023"]
[White "Foisor, Sabina-Francesca"]
[Black "alfianasybullina"]
[WhiteFideId "1212915"]
[WhiteElo "2452"]
[BlackElo "2298"]
[Result "0-1"]
[Round "11"]
[TimeControl "180+1"]
[Date "2023.11.14"]
[WhiteClock "0:00:17"]
[BlackClock "0:00:36"]
[Board "97"]

1. d4 {[%clk 0:03:00]}  Nf6 {[%clk 0:02:58]} 2. c4 {[%clk 0:03:00]}  c5 {[%clk 0:02:53]} 3. d5 {[%clk 0:03:00]}  e6 {[%clk 0:02:48]} 4. Nc3 {[%clk 0:02:57]}  exd5 {[%clk 0:02:47]} 5. cxd5 {[%clk 0:02:57]}  d6 {[%clk 0:02:46]} 6. Nf3 {[%clk 0:02:57]}  g6 {[%clk 0:02:43]} 7. Nd2 {[%clk 0:02:57]}  Bg7 {[%clk 0:02:39]} 8. e4 {[%clk 0:02:57]}  O-O {[%clk 0:02:36]} 9. Be2 {[%clk 0:02:56]}  b6 {[%clk 0:02:33]} 10. O-O {[%clk 0:02:56]}  Ba6 {[%clk 0:02:30]} 11. Kh1 {[%clk 0:02:47]}  Qe7 {[%clk 0:02:26]} 12. a3 {[%clk 0:02:38]}  Bxe2 {[%clk 0:02:23]} 13. Qxe2 {[%clk 0:02:39]}  Nbd7 {[%clk 0:02:20]} 14. f4 {[%clk 0:02:28]}  Rae8 {[%clk 0:02:16]} 15. Re1 {[%clk 0:02:14]}  Nh5 {[%clk 0:02:00]} 16. Nf3 {[%clk 0:02:07]}  f5 {[%clk 0:02:00]} 17. exf5 {[%clk 0:01:51]}  Qxe2 {[%clk 0:01:57]} 18. Rxe2 {[%clk 0:01:52]}  Bxc3 {[%clk 0:01:52]} 19. Rxe8 {[%clk 0:01:49]}  Rxe8 {[%clk 0:01:52]} 20. bxc3 {[%clk 0:01:49]}  gxf5 {[%clk 0:01:47]} 21. Bd2 {[%clk 0:01:24]}  Re4 {[%clk 0:01:46]} 22. Re1 {[%clk 0:01:17]}  Nhf6 {[%clk 0:01:45]} 23. Nh4 {[%clk 0:01:10]}  Rxe1+ {[%clk 0:01:36]} 24. Bxe1 {[%clk 0:01:11]}  Nxd5 {[%clk 0:01:34]} 25. Nxf5 {[%clk 0:01:11]}  Kf7 {[%clk 0:01:28]} 26. Nxd6+ {[%clk 0:01:08]}  Ke6 {[%clk 0:01:26]} 27. Nc8 {[%clk 0:01:04]}  a6 {[%clk 0:01:26]} 28. g3 {[%clk 0:01:02]}  N7f6 {[%clk 0:01:16]} 29. Kg2 {[%clk 0:01:00]}  Kd7 {[%clk 0:01:14]} 30. Na7 {[%clk 0:00:55]}  Ne3+ {[%clk 0:01:13]} 31. Kf3 {[%clk 0:00:54]}  Nc2 {[%clk 0:01:12]} 32. Ke2 {[%clk 0:00:44]}  Kc7 {[%clk 0:01:07]} 33. Bd2 {[%clk 0:00:33]}  Nxa3 {[%clk 0:01:03]} 34. Kd3 {[%clk 0:00:30]}  b5 {[%clk 0:01:01]} 35. f5 {[%clk 0:00:26]}  Nc4 {[%clk 0:00:58]} 36. Bg5 {[%clk 0:00:22]}  Nd7 {[%clk 0:00:52]} 37. f6 {[%clk 0:00:22]}  Kb7 {[%clk 0:00:50]} 38. Ke4 {[%clk 0:00:20]}  Kxa7 {[%clk 0:00:46]} 39. Bf4 {[%clk 0:00:18]}  Nxf6+ {[%clk 0:00:43]} 40. Kf5 {[%clk 0:00:17]}  Nd5 {[%clk 0:00:43]} 41. Bc1 {[%clk 0:00:16]}  Nxc3 {[%clk 0:00:41]} 42. Kg5 {[%clk 0:00:16]}  Ne2 {[%clk 0:00:41]} 43. Bf4 {[%clk 0:00:15]}  Nxf4 {[%clk 0:00:39]} 44. gxf4 {[%clk 0:00:16]}  Nd6 {[%clk 0:00:38]} 45. f5 {[%clk 0:00:17]}  c4 {[%clk 0:00:39]} 46. f6 {[%clk 0:00:17]}  c3 {[%clk 0:00:39]} 47. Kh6 {[%clk 0:00:17]}  c2 {[%clk 0:00:39]} 48. Kxh7 {[%clk 0:00:18]}  c1=Q {[%clk 0:00:39]} 49. Kg7 {[%clk 0:00:19]}  Qg5+ {[%clk 0:00:39]} 50. Kh7 {[%clk 0:00:19]}  Qxf6 {[%clk 0:00:38]} 51. h4 {[%clk 0:00:20]}  Qxh4+ {[%clk 0:00:37]} 52. Kg8 {[%clk 0:00:20]}  Qe7 {[%clk 0:00:36]} 53. Kh8 {[%clk 0:00:17]}  Nf5 {[%clk 0:00:36]} 0-1


[Site "https://www.chess.com"]

[Event "Titled Tuesday Blitz November 14 Early 2023"]
[White "ATM622"]
[Black "Suduvasachmatai"]
[WhiteElo "2427"]
[BlackElo "2253"]
[Result "1-0"]
[Round "11"]
[TimeControl "180+1"]
[Date "2023.11.14"]
[WhiteClock "0:00:05"]
[BlackClock "0:00:08"]
[Board "99"]

1. d4 {[%clk 0:03:00]}  Nf6 {[%clk 0:02:59]} 2. c4 {[%clk 0:02:58]}  e6 {[%clk 0:02:59]} 3. g3 {[%clk 0:02:58]}  d5 {[%clk 0:02:59]} 4. Bg2 {[%clk 0:02:58]}  c5 {[%clk 0:02:59]} 5. Nf3 {[%clk 0:02:59]}  Nc6 {[%clk 0:02:58]} 6. cxd5 {[%clk 0:02:59]}  exd5 {[%clk 0:02:58]} 7. O-O {[%clk 0:02:59]}  Bf5 {[%clk 0:02:58]} 8. dxc5 {[%clk 0:03:00]}  Bxc5 {[%clk 0:02:57]} 9. a3 {[%clk 0:03:00]}  O-O {[%clk 0:02:58]} 10. b4 {[%clk 0:03:00]}  Bb6 {[%clk 0:02:57]} 11. Bb2 {[%clk 0:03:00]}  Re8 {[%clk 0:02:52]} 12. b5 {[%clk 0:02:58]}  Na5 {[%clk 0:02:51]} 13. Nd4 {[%clk 0:02:52]}  Bg6 {[%clk 0:02:49]} 14. Nd2 {[%clk 0:02:48]}  Nc4 {[%clk 0:02:40]} 15. Nxc4 {[%clk 0:02:45]}  dxc4 {[%clk 0:02:40]} 16. Bxb7 {[%clk 0:02:46]}  Rb8 {[%clk 0:02:39]} 17. Bg2 {[%clk 0:02:32]}  Ne4 {[%clk 0:02:23]} 18. Nc6 {[%clk 0:02:24]}  Qxd1 {[%clk 0:02:20]} 19. Raxd1 {[%clk 0:02:23]}  Rbc8 {[%clk 0:02:19]} 20. Bh3 {[%clk 0:02:14]}  Rc7 {[%clk 0:02:10]} 21. Be5 {[%clk 0:02:07]}  Rxc6 {[%clk 0:01:57]} 22. bxc6 {[%clk 0:02:07]}  Rxe5 {[%clk 0:01:57]} 23. Rb1 {[%clk 0:01:53]}  Ng5 {[%clk 0:01:37]} 24. Bd7 {[%clk 0:01:46]}  Bxb1 {[%clk 0:01:35]} 25. Rxb1 {[%clk 0:01:46]}  Kf8 {[%clk 0:01:33]} 26. Rxb6 {[%clk 0:01:41]}  axb6 {[%clk 0:01:33]} 27. c7 {[%clk 0:01:41]}  Rc5 {[%clk 0:01:33]} 28. c8=Q+ {[%clk 0:01:41]}  Rxc8 {[%clk 0:01:32]} 29. Bxc8 {[%clk 0:01:42]}  Ne4 {[%clk 0:01:16]} 30. Bf5 {[%clk 0:01:32]}  Nc3 {[%clk 0:01:07]} 31. Kf1 {[%clk 0:01:24]}  Nb5 {[%clk 0:01:05]} 32. a4 {[%clk 0:01:24]}  Nd4 {[%clk 0:01:04]} 33. Be4 {[%clk 0:01:18]}  f5 {[%clk 0:00:56]} 34. e3 {[%clk 0:00:38]}  Nb3 {[%clk 0:00:43]} 35. Bxf5 {[%clk 0:00:32]}  Nc5 {[%clk 0:00:34]} 36. Bc2 {[%clk 0:00:31]}  Ke7 {[%clk 0:00:34]} 37. Ke1 {[%clk 0:00:30]}  Kf6 {[%clk 0:00:34]} 38. Kd2 {[%clk 0:00:29]}  Ke5 {[%clk 0:00:34]} 39. f4+ {[%clk 0:00:27]}  Kd5 {[%clk 0:00:33]} 40. Kc3 {[%clk 0:00:27]}  Nb7 {[%clk 0:00:28]} 41. Bxh7 {[%clk 0:00:22]}  Kc5 {[%clk 0:00:25]} 42. Bc2 {[%clk 0:00:18]}  Na5 {[%clk 0:00:25]} 43. e4 {[%clk 0:00:16]}  Nc6 {[%clk 0:00:25]} 44. Bd1 {[%clk 0:00:14]}  Nb4 {[%clk 0:00:25]} 45. h4 {[%clk 0:00:12]}  Na2+ {[%clk 0:00:24]} 46. Kb2 {[%clk 0:00:13]}  Nb4 {[%clk 0:00:24]} 47. e5 {[%clk 0:00:06]}  Nd5 {[%clk 0:00:23]} 48. Bf3 {[%clk 0:00:06]}  Ne7 {[%clk 0:00:20]} 49. g4 {[%clk 0:00:06]}  Kb4 {[%clk 0:00:19]} 50. f5 {[%clk 0:00:04]}  Kc5 {[%clk 0:00:18]} 51. Be4 {[%clk 0:00:04]}  Kd4 {[%clk 0:00:17]} 52. f6 {[%clk 0:00:04]}  gxf6 {[%clk 0:00:08]} 53. exf6 {[%clk 0:00:05]} 1-0


[Site "https://www.chess.com"]

[Event "Titled Tuesday Blitz November 14 Early 2023"]
[White "Osinovsky, Stepan"]
[Black "VitaliyChayka"]
[WhiteFideId "4157354"]
[WhiteElo "2427"]
[BlackElo "2258"]
[Result "0-1"]
[Round "11"]
[TimeControl "180+1"]
[Date "2023.11.14"]
[WhiteClock "0:00:00"]
[BlackClock "0:00:39"]
[Board "100"]

1. e4 {[%clk 0:03:00]}  d6 {[%clk 0:02:59]} 2. d4 {[%clk 0:03:00]}  Nf6 {[%clk 0:02:59]} 3. Nc3 {[%clk 0:02:59]}  e5 {[%clk 0:02:59]} 4. dxe5 {[%clk 0:02:52]}  dxe5 {[%clk 0:03:00]} 5. Qxd8+ {[%clk 0:02:52]}  Kxd8 {[%clk 0:03:01]} 6. f3 {[%clk 0:02:49]}  Be6 {[%clk 0:03:00]} 7. Nh3 {[%clk 0:02:48]}  h6 {[%clk 0:03:00]} 8. Nf2 {[%clk 0:02:44]}  Nbd7 {[%clk 0:03:00]} 9. a3 {[%clk 0:02:37]}  c6 {[%clk 0:03:00]} 10. b3 {[%clk 0:02:35]}  Kc7 {[%clk 0:02:59]} 11. Bb2 {[%clk 0:02:35]}  Be7 {[%clk 0:02:53]} 12. Nd3 {[%clk 0:02:34]}  h5 {[%clk 0:02:45]} 13. Nd1 {[%clk 0:02:22]}  Bd6 {[%clk 0:02:44]} 14. Ne3 {[%clk 0:02:21]}  b5 {[%clk 0:02:41]} 15. Be2 {[%clk 0:02:14]}  g6 {[%clk 0:02:41]} 16. O-O-O {[%clk 0:02:04]}  Rhd8 {[%clk 0:02:36]} 17. Kb1 {[%clk 0:02:04]}  a6 {[%clk 0:02:31]} 18. Rhe1 {[%clk 0:02:02]}  Ne8 {[%clk 0:02:30]} 19. g3 {[%clk 0:01:55]}  Nef6 {[%clk 0:02:10]} 20. Bf1 {[%clk 0:01:52]}  h4 {[%clk 0:02:10]} 21. Bg2 {[%clk 0:01:45]}  hxg3 {[%clk 0:02:09]} 22. hxg3 {[%clk 0:01:46]}  Nh5 {[%clk 0:02:10]} 23. g4 {[%clk 0:01:33]}  Nf4 {[%clk 0:02:07]} 24. Nxf4 {[%clk 0:01:32]}  exf4 {[%clk 0:02:08]} 25. Nd5+ {[%clk 0:01:06]}  cxd5 {[%clk 0:01:56]} 26. exd5 {[%clk 0:01:07]}  Nc5 {[%clk 0:01:47]} 27. dxe6 {[%clk 0:01:05]}  Nxe6 {[%clk 0:01:47]} 28. Bf1 {[%clk 0:00:54]}  Bc5 {[%clk 0:01:45]} 29. b4 {[%clk 0:00:51]}  Bf2 {[%clk 0:01:40]} 30. Be5+ {[%clk 0:00:48]}  Kc6 {[%clk 0:01:39]} 31. Rxd8 {[%clk 0:00:39]}  Rxd8 {[%clk 0:01:40]} 32. Rc1 {[%clk 0:00:37]}  Rd5 {[%clk 0:01:37]} 33. Bb2 {[%clk 0:00:22]}  Be3 {[%clk 0:01:32]} 34. c4 {[%clk 0:00:22]}  bxc4 {[%clk 0:01:21]} 35. Rxc4+ {[%clk 0:00:21]}  Kb6 {[%clk 0:01:16]} 36. Be2 {[%clk 0:00:21]}  Ng5 {[%clk 0:01:00]} 37. a4 {[%clk 0:00:20]}  Nh3 {[%clk 0:00:54]} 38. a5+ {[%clk 0:00:14]}  Kb7 {[%clk 0:00:54]} 39. Rc2 {[%clk 0:00:09]}  Ng1 {[%clk 0:00:52]} 40. Bc4 {[%clk 0:00:09]}  Rd1+ {[%clk 0:00:52]} 41. Ka2 {[%clk 0:00:09]}  Nxf3 {[%clk 0:00:53]} 42. Bxf7 {[%clk 0:00:08]}  Ne5 {[%clk 0:00:52]} 43. Be6 {[%clk 0:00:05]}  Bd4 {[%clk 0:00:44]} 44. Bd5+ {[%clk 0:00:04]}  Kb8 {[%clk 0:00:42]} 45. Be4 {[%clk 0:00:00]}  g5 {[%clk 0:00:39]} 0-1


[Site "https://www.chess.com"]